Cogmind - Beta 16 @@@ ROGUE MODE // 2025.12.15 @ 10:21:29 Player: TheDoorMatt Result: Self-destructed Performance ------------- Evolutions (1) 500 Regions Visited (3) 600 Robots Destroyed (23) 115 Value Destroyed (419) 419 Prototype IDs (2) 40 Alien Tech Used (0) 0 Bonus (0) 0 TOTAL SCORE: 1674 Bonus ------- None Cogmind --------- Core Integrity 67/400 Matter 229/300 Energy 280/280 System Corruption 0% Temperature Cool (0) Movement Treading (240) Ox1 Location -9/Storage Parts ------- > --- POWER (1) -------- Cooled Ion Engine > --- PROPULSION (2) --- Light Treads > --- UTILITY (4) ------ Small Storage Unit Visual Processing Unit Seismic Detector Hardened Medium Armor Plating > --- WEAPON (2) ------- Light Cannon Flail > --- INVENTORY (8) ---- Cooled Ion Engine Sensor Array Hardened Medium Armor Plating Hardened Medium Armor Plating Hardened Medium Armor Plating Light Assault Rifle Heavy Assault Rifle Light Cannon Peak State ------------ > --- POWER ------------ Cooled Ion Engine > --- PROPULSION ------- Light Treads Improved Treads > --- UTILITY ---------- Small Storage Unit Visual Processing Unit Seismic Detector Hardened Medium Armor Plating > --- WEAPON ----------- Light Assault Rifle Light Cannon > --- INVENTORY -------- Cooled Ion Engine Cooled Ion Engine Light Treads Aluminum Leg Aluminum Leg Sensor Array Light Cannon Mining Laser [Rating: 16] Favorites ----------- Power Ion Engine Engine Ion Engine Propulsion Light Treads Treads Light Treads Utility Small Storage Unit Device Seismic Detector Storage Small Storage Unit Processor Visual Processing Unit Protection Hardened Medium Armor Plating Weapon Light Assault Rifle Ballistic Gun Light Assault Rifle Ballistic Cannon Light Cannon Special Weapon Mining Laser Impact Weapon Flail Build | -11 -10 -9 -9 ------- Run | Yrd Mat Mat Sto Slots Evolved 2 | . . 2 . Power . | . . . . Propulsion . | . . . . Utility 2 | . . 2 . Weapon . | . . . . Parts Attached 23 | 8 . 15 . Power 4 | 1 . 3 . Engine 4 | 1 . 3 . Core . | . . . . Reactor . | . . . . Propulsion 4 | 2 . 2 . Treads 4 | 2 . 2 . Leg . | . . . . Wheel . | . . . . Hover . | . . . . Flight . | . . . . Utility 8 | 2 . 6 . Device 2 | 1 . 1 . Storage 1 | 1 . . . Processor 2 | . . 2 . Hackware . | . . . . Protection 3 | . . 3 . Artifact . | . . . . Weapon 7 | 3 . 4 . Energy Gun . | . . . . Energy Cannon . | . . . . Ballistic Gun 2 | 1 . 1 . Ballistic Cannon 2 | . . 2 . Launcher . | . . . . Special Weapon 2 | 2 . . . Impact Weapon 1 | . . 1 . Slashing Weapon . | . . . . Piercing Weapon . | . . . . Special Melee Weapon . | . . . . Unidentified Prototypes . | . . . . Parts Lost 4 | . . 4 . Power . | . . . . Propulsion . | . . . . Utility 1 | . . 1 . Weapon 3 | . . 3 . Highest Loss Streak 2 | . . 2 . To Critical Strikes . | . . . . Average Backups 6 | 5 7 7 . Power 1 | . 1 1 . Propulsion 2 | 3 4 1 . Utility 1 | . 1 2 . Weapon 1 | . 1 1 . Tool/Special . | . . . . Unused Backups 9 | . . 5 4 Power 2 | . . 1 1 Propulsion 4 | . . 4 . Utility 3 | . . . 3 Weapon . | . . . . Tool/Special . | . . . . Average Slot Usage (%) 90 | . 100 87 . Engine 11 | . 14 10 . Treads 19 | . 28 17 . Device 10 | . 14 9 . Storage 11 | . 14 11 . Processor 8 | . . 10 . Protection 6 | . . 8 . Ballistic Gun 8 | . 14 6 . Ballistic Cannon 4 | . . 5 . Special Weapon 6 | . 14 4 . Impact Weapon 2 | . . 2 . Peak Build Rating 16 | 7 7 16 . Average Rating 10 | 5 7 13 . On Entrance 7 | . 7 7 15 Avg Prop Armor Cover (%) . | . . . . Naked Turns . | . . . . Heaviest Build 27 | 13 13 27 . Greatest Support 43 | 40 40 43 . Greatest Overweight (x) 8 | 1 . 8 . Average Overweight (x) . | . . . . Largest Inventory Capacity 8 | 8 8 8 . Average Capacity 7 | 7 8 8 . Most Carried 8 | 7 7 8 . Average Carried 7 | 5 7 7 . Final Capacity 8 | 8 8 8 8 Final Carried 8 | 7 7 8 8 Class Distribution -------------------- 100% | Mutant Dominant Class ---------------- Mutant | -10/Materials Mutant | -9/Materials Mutant | -9/Storage Resources | -11 -10 -9 -9 ----------- Run | Yrd Mat Mat Sto Matter Collected 585 | 300 25 260 . Remotely . | . . . . Salvage Created 466 | 182 25 259 . Parts 44 | 15 3 26 . Haulers Intercepted . | . . . . Recyclers Shooed . | . . . . Parts Field Recycled . | . . . . Retrieved Matter . | . . . . Parts Self-Destructed . | . . . . Prevented . | . . . . Parts Restored . | . . . . Kills | -11 -10 -9 -9 ------- Run | Yrd Mat Mat Sto Combat Hostiles Destroyed 16 | . 2 14 . Guns 5 | . . 5 . Cannons 10 | . 2 8 . Classes Destroyed 5 | 2 1 2 . Tunneler 6 | 6 . . . Recycler 1 | 1 . . . Swarmer 9 | . . 9 . Grunt 4 | . 2 2 . Sentry 3 | . . 3 . Best Kill Streak 4 | 3 1 4 . Combat Bots Only 4 | . 1 4 . Max Kills in Single Turn 1 | 1 1 1 . Gunslinging . | . . . . Exploded . | . . . . Melee . | . . . . Uniques/NPCs Destroyed . | . . . . Combat | -11 -10 -9 -9 -------- Run | Yrd Mat Mat Sto Hostile Shots Fired 177 | . 11 166 . Missed 41 | . 1 40 . Hits 136 | . 10 126 . Projectile 136 | . 10 126 . Critical Strikes 4 | . . 4 . Damage Taken 1779 | . 111 1668 . Core 366 | . 33 333 . Absorbed by Shields . | . . . . Core Remaining (%) 93 | 100 86 . . Volleys Fired 104 | 33 8 63 . Largest 2 | 2 2 2 . Hottest 130 | 120 120 130 . Shots Fired 128 | 38 13 77 . Gun 72 | 33 8 31 . Cannon 21 | . . 21 . Launcher . | . . . . Special 35 | 5 5 25 . Kinetic 93 | 33 8 52 . Thermal 35 | 5 5 25 . Explosive . | . . . . Electromagnetic . | . . . . Robot Hit Streak 17 | 6 6 17 . Robot Miss Streak 5 | 3 1 5 . Penetration Max . | . . . . Secondary Targets . | . . . . Shots Hit Robots 82 | 25 11 46 . Core Hits 35 | 11 3 21 . Critical Kills 1 | 1 . . . Critical Parts Destroyed 1 | . . 1 . Critical Strikes 2 | 1 . 1 . Destroy 1 | 1 . . . Smash 1 | . . 1 . Melee Attacks 7 | . . 7 . Impact 7 | . . 7 . Slashing . | . . . . Piercing . | . . . . Sneak Attacks . | . . . . Combat Hostiles . | . . . . Follow-up Attacks . | . . . . Damage Inflicted 1067 | 239 132 696 . Guns 452 | 191 60 201 . Cannons 248 | . . 248 . Explosions . | . . . . Melee 79 | . . 79 . Ramming . | . . . . Kinetic 700 | 191 60 449 . Thermal 288 | 48 72 168 . Explosive . | . . . . Electromagnetic . | . . . . Impact 79 | . . 79 . Slashing . | . . . . Piercing . | . . . . Highest Corruption . | . . . . Average Corruption . | . . . . Corruption Purged . | . . . . Corruption Blocked . | . . . . Overload Shots . | . . . . Overflow Damage 44 | 3 . 41 . Projectiles 3 | 3 . . . Explosions . | . . . . Melee 41 | . . 41 . Knockbacks 4 | . . 4 . Impact 1 | . . 1 . Kinetic 3 | . . 3 . Secondary . | . . . . Self-Inflicted Damage . | . . . . Shots . | . . . . Rammed . | . . . . Targets Rammed . | . . . . Kicked . | . . . . Crushed . | . . . . Highest Temperature 140 | 40 130 140 . Average Temperature 38 | 21 59 37 . Received Heat Transfer 270 | . 60 210 . Siege Activations . | . . . . Martial Activations . | . . . . Shielding Activations . | . . . . Robots Disrupted . | . . . . Combat Hostiles . | . . . . Robots Corrupted 1 | . . 1 . Combat Hostiles 1 | . . 1 . Parts Fried . | . . . . Impact Corruptions 2 | . . 2 . Robots Melted . | . . . . Combat Hostiles . | . . . . Parts Melted . | . . . . Heat Transferred 600 | 100 150 350 . Parts Sabotaged . | . . . . Parts Stolen . | . . . . Parts Stripped . | . . . . Power Chain Reactions . | . . . . Alert | -11 -10 -9 -9 ------- Run | Yrd Mat Mat Sto Maximum Alert Level . | . . . . Low Security (%) 100 | 100 100 100 . Level 1 . | . . . . Level 2 . | . . . . Level 3 . | . . . . Level 4 . | . . . . Level 5 . | . . . . High Security . | . . . . Max Security . | . . . . Peak Influence 96 | 10 31 96 . Initial 35 | . . . 35 Average 16 | . 4 26 . Influence Increases 485 | 35 51 399 . Destroy 0b10 Robot/C 320 | . 40 280 . Destroy 0b10 Robot/NC 35 | 35 . . . Destroy Leader 70 | . 10 60 . Disable Machine 15 | . . 15 . Destroy Structure 15 | . 1 14 . Lose Combat Pursuer 30 | . . 30 . Influence Decreases 450 | 35 51 315 49 Entered New Map 49 | . . . 49 Time Decay 361 | 35 51 275 . Lost Part 40 | . . 40 . Squads Dispatched 2 | . 1 1 . Investigation 1 | . 1 . . Extermination . | . . . . Reinforcement 1 | . . 1 . Assault . | . . . . Garrison . | . . . . Intercept . | . . . . Searches Triggered . | . . . . Construction Impeded . | . . . . Haulers Reinforced . | . . . . Active Scanning Responses . | . . . . Cargo Convoy Interrupts . | . . . . Stealth | -11 -10 -9 -9 --------- Run | Yrd Mat Mat Sto Distress Signals 4 | . . 4 . Communications Jammed . | . . . . Distress Signals . | . . . . Times Spotted 24 | . 2 22 . Peak Tracking Total 4 | . 1 4 . Tactical Retreats 2 | . . 2 . Traps | -11 -10 -9 -9 ------- Run | Yrd Mat Mat Sto Traps Triggered 5 | . . 5 . Indirectly . | . . . . Trap Hack Attempts . | . . . . Triggered . | . . . . Disarmed . | . . . . Reprogrammed . | . . . . Reused . | . . . . Traps Extracted . | . . . . Installed . | . . . . Triggered . | . . . . Machines | -11 -10 -9 -9 ---------- Run | Yrd Mat Mat Sto Machines Disabled 1 | . . 1 . Max in Single Turn 1 | . . 1 . Machines Repaired . | . . . . Machines Dismantled . | . . . . Machines Sabotaged . | . . . . Overloaded Fab Kills . | . . . . Hacking | -11 -10 -9 -9 --------- Run | Yrd Mat Mat Sto Machines Accessed 4 | . 3 1 . Terminals 4 | . 3 1 . Fabricators . | . . . . Repair Stations . | . . . . Recycling Units . | . . . . Scanalyzers . | . . . . Garrison Access . | . . . . Total Hacks 9 | . 7 2 . Successful 4 | . 3 1 . Failed 5 | . 4 1 . Catastrophic 2 | . 2 . . Database Lockouts . | . . . . Manual . | . . . . Terminals 9 | . 7 2 . Fabricators . | . . . . Repair Stations . | . . . . Recycling Units . | . . . . Scanalyzers . | . . . . Garrison Access . | . . . . Terminal Hacks 4 | . 3 1 . Record 2 | . 1 1 . Prototype ID Bank 1 | . 1 . . Maintenance Status 1 | . 1 . . Fabricator Hacks . | . . . . Repair Station Hacks . | . . . . Recycling Unit Hacks . | . . . . Scanalyzer . | . . . . Garrison Access Hacks . | . . . . Unauthorized Hacks . | . . . . Terminals . | . . . . Fabricators . | . . . . Repair Stations . | . . . . Recycling Units . | . . . . Scanalyzers . | . . . . Garrison Access . | . . . . Data Cores Recovered . | . . . . Used . | . . . . Hacking Detections 4 | . 3 1 . Full Trace Events 1 | . 1 . . Feedback Events . | . . . . Feedback Blocked . | . . . . Robot Schematics Acquired . | . . . . Robots Built . | . . . . Authchips . | . . . . Time . | . . . . Total Robot Build Rating . | . . . . Part Schematics Acquired . | . . . . Parts Built . | . . . . Authchips . | . . . . Time . | . . . . Total Part Build Rating . | . . . . Part Studies Acquired . | . . . . Parts Repaired . | . . . . Time . | . . . . Parts Recycled . | . . . . Recycled Matter . | . . . . Retrieved Matter . | . . . . Retrieved Components . | . . . . Parts Scanalyzed . | . . . . Part Schematics Acquired . | . . . . Parts Damaged . | . . . . Bothacking | -11 -10 -9 -9 ------------ Run | Yrd Mat Mat Sto Used RIF Installer . | . . . . Robots Hacked . | . . . . Non-combat . | . . . . Combat . | . . . . Robot Hacks Applied . | . . . . Relay Couplers Released . | . . . . Fabnet Peak Effective % . | . . . . Robots Rewired . | . . . . Allies Hacked . | . . . . Hacks Repelled . | . . . . Allies | -11 -10 -9 -9 -------- Run | Yrd Mat Mat Sto Total Allies . | . . . . Largest Group . | . . . . Highest-Rated Group . | . . . . Highest-Rated Ally . | . . . . Total Orders . | . . . . Ally Attacks . | . . . . Total Damage . | . . . . Kills . | . . . . Allies Corrupted . | . . . . Allies Melted . | . . . . Intel | -11 -10 -9 -9 ------- Run | Yrd Mat Mat Sto Active Infowar (turns) 1203 | 221 250 732 . Optics 482 | . . 482 . Seismic 1203 | 221 250 732 . Robot Analysis Total . | . . . . Derelict Logs Recovered . | . . . . Drone Launches . | . . . . Drone Recoveries . | . . . . Exploration | -11 -10 -9 -9 ------------- Run | Yrd Mat Mat Sto Turns Passed 1515 | 402 250 863 . Spaces Moved 664 | 209 134 321 . Core 29 | 23 . 6 . Treads 635 | 186 134 315 . Legs . | . . . . Wheels . | . . . . Hover . | . . . . Flight . | . . . . Fastest Speed 50 | 50 160 160 . Average Speed 167 | 148 160 182 . Slowest Speed 450 | 160 160 450 . Overloaded Moves . | . . . . Propulsion Burnouts . | . . . . Robots Hopped . | . . . . Potential Cave-ins . | . . . . Cave-ins Triggered 1 | . . 1 . Exploration Rate (%) 19 | 12 34 29 3 Regions Visited 3 Branch Regions 1 Pre-discovered Areas . | . . . . Known Exits Taken . | . . . . Unknown Exits Taken 3 | 1 1 1 . Scrap Searched . | . . . . Spaces Dug 9 | . . 9 . Terrain Destroyed 16 | 1 1 14 . Melee . | . . . . Projectile 16 | 1 1 14 . AOE . | . . . . Terrain Rammed . | . . . . Walls Destroyed . | . . . . Machines Disabled . | . . . . Actions | -11 -10 -9 -9 --------- Run | Yrd Mat Mat Sto Total 868 | 256 148 464 . Wait 36 | . 7 29 . Move 661 | 208 133 320 . Hop . | . . . . Pick Up 15 | 6 . 9 . Fast Attach 22 | 7 . 15 . Attach 2 | . . 2 . Detach 1 | . . 1 . Swap 8 | 2 . 6 . Drop 12 | . . 12 . Fire 104 | 33 8 63 . Melee 7 | . . 7 . Ram . | . . . . Kick . | . . . . Crush . | . . . . Escape Stasis . | . . . . Rewire . | . . . . Trap . | . . . . Miscellaneous . | . . . . Route ------- -11/Scrapyard -10/Materials -9/Materials -9/Storage History --------- Turn | Location | Event 4 | -11/Scrapyard | Discovered new exit (range 13) 403 | -11/Scrapyard | Entered Materials 404 | -10/Materials | Build established: Mutant 404 | -10/Materials | Met a group of wandering Federalists 630 | -10/Materials | Discovered new exit (range 6) 653 | -10/Materials | Entered another Materials area 653 | -9/Materials | Evolved 2 slots: Utility x2 1172 | -9/Materials | Crushed by falling debris 1172 | -9/Materials | Core integrity fell below 50% 1447 | -9/Materials | Discovered new exit (range 12) 1471 | -9/Materials | Core integrity fell below 20% 1516 | -9/Materials | Entered Storage 1516 | -9/Storage | Self-destructed Last Messages --------------- 01395_ R-06 Scavenger collects Lgt. Assault Rifle. 01404_ Acquired 12 matter. 01409_ K-01 Serf collects debris. 01421_ R-06 Scavenger collects Lgt. Ion Engine. 01421_ K-01 Serf collects debris. 01425_ R-06 Scavenger collects Flight Unit. 01425_ K-01 Serf collects debris. 01435_ R-06 Scavenger collects Beam Rifle. 01439_ R-06 Scavenger collects Heat Sink. 01447_ EXIT=FOUND 01481_ U-05 Engineer builds a Wall. 01486_ U-05 Engineer builds a Door. 01487_ Y-45 Defender destroyed. 01491_ U-05 Engineer builds a Wall. 01491_ Acquired Hvy. Assault Rifle. 01492_ Acquired 32 matter. 01494_ Acquired 7 matter. LOCATION=UNKNOWN GOAL=ESCAPE Map ----- +----------------------------------------------------+ | | | | | | | | | | | | | | | | | | | | | | | | | | | | | | | | | | | | | | | | | ????????????????????????????????? | | ????????????????????????????????? | | ????????????????????????????????? | | ???????????# ###########????? | | ???????????# #????? | | ???????????# " @ #????? | | ???????????# #????? | | ???????????# ####+######????? | | ????????????????????????????????? | | ????????????????????????????????? | | ????????????????????????????????? | | ????????????????????????????????? | | ????????????????????????????????? | | ????????????????????????????????? | | ????????????????????????????????? | | ????????????????????????????????? | | ????????????????????????????????? | | ????????????????????????????????? | | ????????????????????????????????? | | ????????????????????????????????? | | ????????????????????????????????? | | ????????????????????????????????? | | ????????????????????????????????? | | ????????????????????????????????? | | ????????????????????????????????? | | ????????????????????????????????? | | ????????????????????????????????? | | ????????????????????????????????? | | ????????????????????????????????? | | ????????????????????????????????? | +----------------------------------------------------+ Best States ------------- Heat Dissipation 28 Energy Generation 14 Energy Capacity 280 Matter Stores 300 Matter Capacity 300 Sight Range 18 Terrain Scan Density 10 Armor Coverage 225 Evasion (%) 50 Targeting Accuracy 6 Recoil Reduction 2 Item Schematics ----------------- None Robot Schematics ------------------ None Fabricated ------------ Nothing Repaired ---------- Nothing Studied --------- None Alien Tech Used ----------------- None Achievements -------------- Overwhelming Challenges ------------ None Game ------ Seed ProjectionSystemRifle Manual? 0 Play Time 00:23:44 Cumulative 38.4 hours Start 2025.12.15 @ 09:52:16 End 2025.12.15 @ 10:21:29 Sessions 1 Manual Loads 0 Difficulty Rogue Special Mode None Game No. 32 Rogue 32 Adventurer 0 Explorer 0 Win Type - Total 0 Types 0/0/0/0/0/0/0/0/0/0 Lore% 16 Gallery% 24 Achievement% 15 Wizard Run 0 Options --------- Layout 1 ASCII 0 Keyboard 0 Movement Mouse Keybinds 0 Fullscreen 1 Font 24/Smallcaps Map View 50x35 Zoom Use 0% Tactical HUD 1 Map Filters NONE Filters NONE Steam 1 RUN: 1583cb48-2a9b-41b4-a4aa-a987c3f3155b